bitfinex/quotes_SOLUSD_20241001
["timestamp","ask_amount","ask_price","bid_price","bid_amount"]
[1727797404679,16.6082,150.53,150.41,16.6203]
[1727797404889,16.6082,150.53,150.42,6.648]
[1727797405266,16.6082,150.53,150.41,23.2687]
[1727797405267,6.6454,150.48,150.41,23.2687]
[1727797405682,16.6082,150.53,150.41,23.2687]
[1727797405893,6.6458,150.47,150.41,23.2687]
[1727797406463,6.6454,150.49,150.42,6.6477]
[1727797406780,6.6462,150.46,150.39,6.6493]
[1727797407463,6.6459,150.47,150.41,6.6484]
[1727797407987,6.6463,150.46,150.4,6.6488]
[1727797408567,6.6463,150.46,150.41,1.32934012]
[1727797408995,6.6463,150.46,150.4,6.6488]
[1727797409888,16.6134,150.49,150.37,6.6498]
[1727797410090,6.6476,150.43,150.38,6.6496]
[1727797410317,16.6155,150.47,150.35,16.0537]
[1727797410491,6.6485,150.41,150.36,6.6506]
[1727797410799,33.221,150.51,150.36,16.6259]
[1727797411005,16.6114,150.5,150.35,49.308]
[1727797411182,6.6491,150.4,150.35,16.0537]
[1727797411387,33.2213,150.51,150.35,16.0537]
[1727797411587,50.0,150.5,150.35,16.0537]
[1727797411803,16.6193,150.43,150.35,16.0537]
[1727797411979,6.6481,150.42,150.37,6.6502]
[1727797412181,8.33754727,150.49,150.4,6.6488]
[1727797412182,6.6468,150.45,150.4,6.6488]
[1727797412600,6.6468,150.45,150.39,6.6493]
[1727797413202,16.6127,150.49,150.37,16.6248]
[1727797413405,16.6166,150.46,150.35,16.0537]
[1727797413582,6.6485,150.41,150.35,16.0537]
[1727797413782,6.6481,150.42,150.36,6.6507]
[1727797413982,6.649,150.4,150.35,16.0537]
[1727797414308,33.2213,150.51,150.36,1.32980824]
[1727797414490,6.6475,150.44,150.38,6.6494]
[1727797414688,16.6157,150.46,150.35,16.0537]
[1727797414993,6.6485,150.41,150.36,6.6506]
[1727797415487,33.2309,150.47,150.35,16.0537]
[1727797415689,33.2213,150.51,150.35,16.0537]
[1727797415896,33.2213,150.51,150.38,16.6245]
[1727797416093,33.2213,150.51,150.35,16.0537]
[1727797416094,33.2213,150.51,150.37,6.6502]
[1727797416315,16.6142,150.48,150.37,6.6502]
[1727797416530,6.6481,150.42,150.37,6.6502]
[1727797416806,16.6186,150.44,150.35,16.0537]
[1727797417007,6.6485,150.41,150.35,22.7047]
[1727797417310,6.6481,150.42,150.36,6.6506]
[1727797417608,6.6476,150.43,150.37,7.97949096]
[1727797417822,33.2213,150.51,150.39,6.6493]
[1727797418025,6.6472,150.44,150.38,23.2735]
[1727797418228,6.6476,150.43,150.38,23.2735]
[1727797418926,16.6117,150.5,150.38,23.2735]
[1727797419123,6.6472,150.44,150.38,23.2735]
[1727797419297,6.6472,150.44,150.38,16.6238]
[1727797419502,6.6468,150.45,150.4,6.6488]
[1727797419815,16.6117,150.5,150.41,7.97746854]
[1727797420008,16.6117,150.5,150.42,13.0557]
[1727797420218,6.6449,150.49,150.42,24.35611651]
[1727797420419,6.6445,150.5,150.44,6.6469]
[1727797420720,6.6449,150.49,150.45,1.32909711]
[1727797421503,6.6449,150.49,150.44,6.6469]
[1727797421732,6.6455,150.48,150.43,6.6475]
[1727797421929,6.6449,150.49,150.44,7.97619805]
[1727797422229,6.6449,150.49,150.44,6.6471]
[1727797422526,16.6085,150.53,150.43,6.6472]
[1727797422730,6.6464,150.46,150.42,6.4077]
[1727797422912,6.6462,150.47,150.42,7.7369467]
[1727797423114,6.6452,150.49,150.44,6.6471]
[1727797423429,102.3607,150.59,150.45,17.32531937]
[1727797423604,6.644,150.51,150.47,16.6137]
[1727797423804,6.6436,150.52,150.47,23.2594]
[1727797424114,6.6441,150.51,150.47,16.6137]
[1727797424319,6.6437,150.52,150.47,23.2595]
[1727797425536,16.6062,150.55,150.45,15.9963]
[1727797425713,6.6446,150.5,150.45,22.6426]
[1727797426024,16.6062,150.55,150.47,6.6455]
[1727797426210,4.69533502,150.6,150.45,15.9963]
[1727797426211,16.603,150.58,150.48,1.32877867]
[1727797426408,16.603,150.58,150.48,16.6125]
[1727797426409,6.6435,150.53,150.48,16.6125]
[1727797426607,6.6435,150.53,150.47,6.6457]
[1727797426608,6.6432,150.53,150.47,6.6457]
[1727797427126,6.6446,150.5,150.45,32.6127]
[1727797427514,16.6061,150.55,150.46,6.6461]
[1727797427515,6.6441,150.51,150.46,6.6461]
[1727797427713,16.6061,150.55,150.45,32.6127]
[1727797427922,6.6447,150.5,150.45,32.6127]
[1727797428105,33.2059,150.58,150.46,1.32886255]
[1727797428305,33.2059,150.58,150.45,32.6127]
[1727797428306,6.6432,150.53,150.48,6.6453]
[1727797429104,16.6053,150.56,150.45,15.9963]
[1727797429304,6.6437,150.52,150.47,6.6457]
[1727797429528,6.6437,150.52,150.45,15.9963]
[1727797429735,6.6437,150.52,150.47,6.6455]
[1727797430315,4.72977929,150.6,150.45,15.9963]
[1727797430633,6.6423,150.55,150.5,6.6441]
[1727797431437,33.1963,150.62,150.49,6.1876]
[1727797431621,6.6432,150.53,150.49,6.1876]
[1727797431812,33.2054,150.58,150.49,6.1876]
[1727797432226,6.6445,150.5,150.49,6.1876]
[1727797432731,16.6073,150.54,150.49,6.1876]
[1727797433327,6.6445,150.5,150.49,6.1876]
[1727797433638,16.6038,150.57,150.49,6.1876]
[1727797434423,6.6428,150.54,150.49,6.1876]
[1727797434634,6.6432,150.53,150.49,12.8324]
[1727797434837,16.6067,150.55,150.49,6.1876]
[1727797435145,33.1963,150.62,150.49,6.1876]
[1727797435430,6.6417,150.57,150.52,6.6435]
[1727797435838,6.6417,150.57,150.51,16.6098]
[1727797435839,6.6417,150.57,150.53,6.6431]
[1727797436043,69.42392733,150.65,150.54,1.32824858]
[1727797436248,6.6401,150.6,150.55,23.247]
[1727797436557,16.5963,150.64,150.55,23.247]
[1727797436558,6.6405,150.59,150.55,16.6049]
[1727797436740,6.641,150.58,150.54,22.4373]
[1727797436930,6.6408,150.59,150.54,22.4373]
[1727797437318,16.5994,150.61,150.54,15.7949]
[1727797437614,16.6018,150.59,150.5,15.7949]
[1727797437832,53.186,150.63,150.5,15.7949]
[1727797438036,6.6433,150.53,150.5,15.7949]
[1727797438514,16.6042,150.57,150.5,15.7949]
[1727797438725,33.2026,150.6,150.5,15.7949]
[1727797439037,6.6433,150.53,150.5,15.7949]
[1727797439418,6.644,150.51,150.5,15.7949]
[1727797439614,6.6442,150.51,150.49,6.1876]
[1727797439814,6.6441,150.51,150.49,6.1876]
[1727797440038,16.6041,150.57,150.49,6.1876]
[1727797440239,6.6397,150.61,150.56,6.6417]
[1727797440430,34.0267606,150.66,150.55,6.6422]
[1727797440637,6.6402,150.6,150.56,1.328097]
[1727797440826,34.0267606,150.66,150.53,16.6074]
[1727797441033,34.0267606,150.66,150.51,6.644]
[1727797441034,6.6419,150.56,150.51,6.644]
[1727797441349,6.644,150.51,150.49,6.1876]
[1727797441531,6.6438,150.52,150.49,6.1876]
[1727797441944,6.6445,150.5,150.49,6.1876]
[1727797442242,16.603,150.58,150.49,6.1876]
[1727797442619,6.6427,150.54,150.49,6.1876]
[1727797442821,6.6427,150.54,150.5,6.6445]
[1727797443142,34.0267606,150.66,150.54,6.6426]
[1727797443143,6.6406,150.59,150.54,6.6426]
[1727797443322,101.17618268,150.66,150.5,20.0]
[1727797443323,16.5963,150.64,150.55,17.93381165]
[1727797443513,0.8388606,150.66,150.55,32.8737]
[1727797443752,6.6397,150.61,150.57,6.0236]
[1727797443936,16.5958,150.64,150.57,6.0236]
[1727797444113,6.6402,150.6,150.57,6.0236]
[1727797444319,6.6401,150.6,150.57,6.0236]
[1727797444753,6.6409,150.58,150.57,6.0236]
[1727797445251,16.5976,150.63,150.52,6.3821]
[1727797445252,6.6431,150.54,150.52,6.3821]
[1727797445419,16.6019,150.59,150.52,6.3821]
[1727797445619,33.1897,150.65,150.53,1.32852893]
[1727797445844,6.6431,150.53,150.52,6.3821]
[1727797446344,20.0,150.55,150.47,6.3821]
[1727797446845,6.6466,150.46,150.43,6.3821]
[1727797447042,16.612,150.5,150.43,6.3821]
[1727797447235,6.6471,150.44,150.43,6.3821]
[1727797447414,6.6476,150.43,150.4,16.5988]
[1727797447615,16.6151,150.47,150.4,16.5988]
[1727797447852,20.0,150.49,150.4,16.5988]
[1727797448052,6.6467,150.46,150.4,23.2473]
[1727797448229,6.6471,150.44,150.4,16.5988]
[1727797448421,20.0,150.49,150.4,16.5988]
[1727797448627,33.2178,150.53,150.4,16.5988]
[1727797448628,70.0,150.52,150.4,16.5988]
[1727797448827,70.0,150.52,150.38,13.0317]
[1727797448828,6.6475,150.44,150.38,13.0317]
[1727797449025,6.6469,150.45,150.39,6.6493]
[1727797449247,16.6123,150.5,150.38,6.3821]
[1727797449248,36.6023,150.5,150.38,6.3821]
[1727797449747,6.6476,150.43,150.38,6.3821]
[1727797450151,20.0,150.49,150.38,6.3821]
[1727797450325,6.6467,150.45,150.4,6.6489]
[1727797450524,20.0,150.49,150.38,13.0316]
[1727797450745,16.6123,150.5,150.41,6.6484]
[1727797450746,6.6462,150.46,150.41,6.6484]
[1727797451047,6.6471,150.45,150.39,23.2718]
[1727797451357,6.6463,150.46,150.4,6.6486]
[1727797451572,16.6123,150.5,150.39,16.6225]
[1727797451762,50.0,150.52,150.38,6.3821]
[1727797451763,6.6482,150.42,150.38,6.3821]
[1727797451934,20.0,150.47,150.38,6.3821]
[1727797452127,16.6168,150.45,150.38,6.3821]
[1727797452451,6.6489,150.4,150.38,6.3821]
[1727797452751,6.6498,150.38,150.35,16.4742]
[1727797453266,16.6198,150.43,150.33,6.1565]
[1727797453429,16.6179,150.44,150.34,1.3302057]
[1727797453628,6.6512,150.35,150.33,6.1565]
[1727797453936,16.621,150.42,150.33,6.1565]
[1727797454135,4.741764,150.44,150.33,6.1565]
[1727797454136,16.6231,150.4,150.33,6.1565]
[1727797454334,6.6515,150.34,150.33,6.1565]
[1727797454537,6.6515,150.34,150.3,15.02]
[1727797454730,6.6515,150.34,150.29,6.1565]
[1727797454731,20.0,150.39,150.29,6.1565]
[1727797454930,16.6281,150.35,150.3,16.1656]
[1727797455136,6.93589306,150.44,150.34,6.6515]
[1727797455361,50.0,150.5,150.31,6.1364]
[1727797455663,50.0,150.48,150.34,23.2795]
[1727797456034,40.15996796,150.49,150.34,16.628]
[1727797456237,6.6481,150.42,150.36,6.6506]
[1727797456652,40.15996796,150.49,150.34,16.628]
[1727797456854,16.6169,150.45,150.31,6.1364]
[1727797457061,6.6493,150.4,150.34,6.6515]
[1727797457535,83.2352,150.45,150.31,6.1364]
[1727797457739,6.6511,150.35,150.31,6.1364]
[1727797457938,50.0,150.43,150.31,6.1364]
[1727797458364,6.652,150.34,150.3,16.1656]
[1727797458675,16.6246,150.38,150.28,6.6538]
[1727797459168,6.652,150.33,150.28,6.6538]
[1727797459382,6.6516,150.34,150.28,6.6538]
[1727797460050,6.6516,150.34,150.29,6.6537]
[1727797460251,6.6528,150.32,150.28,1.33052365]
[1727797460463,37.96550797,150.41,150.27,6.5589]
[1727797460758,16.6244,150.39,150.3,6.6532]
[1727797460967,6.6509,150.36,150.31,6.6528]
[1727797461260,6.6509,150.36,150.3,6.6533]
[1727797461457,16.6244,150.39,150.3,6.6533]
[1727797461458,6.6511,150.35,150.3,6.6533]
[1727797461771,6.6517,150.34,150.29,23.2874]
[1727797462081,37.96550797,150.41,150.27,6.5589]
[1727797462082,16.6266,150.37,150.27,6.5589]
[1727797462435,6.6529,150.31,150.27,6.5589]
[1727797462864,6.6525,150.32,150.27,6.5589]
[1727797463462,16.6226,150.4,150.28,16.6348]
[1727797463851,16.6226,150.4,150.29,6.6537]
[1727797463852,6.6512,150.35,150.29,6.6537]
[1727797464067,16.6226,150.4,150.29,6.6537]
[1727797464665,6.6515,150.34,150.28,23.2889]
[1727797464865,6.6511,150.36,150.28,16.6348]
[1727797465067,19.99,150.43,150.27,6.5589]
[1727797465068,6.6498,150.38,150.3,16.6324]
[1727797465245,6.6498,150.38,150.32,6.6524]
[1727797465569,16.6246,150.38,150.26,16.6368]
[1727797465743,6.6529,150.31,150.26,23.2916]
[1727797466602,6.6559,150.25,150.2,6.1282]
[1727797466868,33.2536,150.36,150.2,6.1282]
[1727797466869,16.6365,150.28,150.2,6.1282]
[1727797467273,6.6571,150.22,150.2,6.1282]
[1727797467564,6.6571,150.22,150.16,29.3556]
[1727797467782,16.6365,150.28,150.16,22.6965]
[1727797468064,6.6578,150.2,150.16,22.6965]
[1727797468373,6.6573,150.21,150.16,22.6965]
[1727797468575,76.1642,150.29,150.14,0.8388606]
[1727797468576,6.6591,150.17,150.14,0.8388606]
[1727797468747,6.6595,150.16,150.14,0.8388606]
[1727797468941,69.99,150.25,150.14,0.8388606]
[1727797468942,16.6432,150.22,150.14,0.8388606]
[1727797469148,6.6591,150.18,150.14,0.8388606]
[1727797469349,16.6432,150.22,150.14,0.8388606]
[1727797469651,50.0,150.23,150.14,0.8388606]
[1727797469876,6.66,150.15,150.14,0.8388606]
[1727797470783,6.6595,150.16,150.14,0.8388606]
[1727797471160,16.6453,150.2,150.14,0.8388606]
[1727797471583,6.6597,150.16,150.14,0.8388606]
[1727797471764,6.66,150.15,150.14,0.8388606]
[1727797473283,6.272,150.18,150.03,16.2436]
[1727797473284,6.6627,150.09,150.03,22.9087]
[1727797473462,20.0,150.13,150.02,13.3311]
[1727797473659,6.6632,150.08,150.02,13.3315]
[1727797473880,20.0,150.13,150.04,6.6647]
[1727797473881,6.6627,150.09,150.04,6.6647]
[1727797474061,20.0,150.13,150.02,6.6658]
[1727797474263,6.6636,150.07,150.01,16.6648]
[1727797474484,6.6636,150.07,150.02,6.6657]
[1727797474888,6.6626,150.1,150.04,6.6648]
[1727797475080,36.6511,150.14,150.01,16.6648]
[1727797475387,86.6511,150.14,150.01,16.6648]
[1727797475593,86.6511,150.14,150.02,6.6657]
[1727797476184,86.6511,150.14,150.01,16.6648]
[1727797476185,36.6511,150.14,150.03,6.6652]
[1727797476682,36.6511,150.14,150.04,6.6645]
[1727797477164,16.6511,150.14,150.05,6.6644]
[1727797477368,6.272,150.18,150.05,16.66]
[1727797477571,6.272,150.18,150.08,6.663]
[1727797477770,6.272,150.18,150.07,6.6634]
[1727797478692,6.272,150.18,150.09,6.6626]
[1727797478992,6.1837,150.23,150.11,6.6617]
[1727797479171,15.1987,150.24,150.08,6.424]
[1727797479370,15.1987,150.24,150.15,6.6596]
[1727797479570,15.1987,150.24,150.09,20.0]
[1727797479782,22.12506304,150.24,150.1,6.6621]
[1727797480302,22.12506304,150.24,150.11,6.6617]
[1727797480588,22.12506304,150.24,150.13,6.6607]
[1727797481170,22.12506304,150.24,150.11,16.6535]
[1727797481171,15.1987,150.24,150.14,6.6604]
[1727797481372,6.1837,150.27,150.09,20.0]
[1727797481577,6.1837,150.27,150.13,15.9473]
[1727797481774,6.1837,150.27,150.18,6.6586]
[1727797482286,6.1837,150.27,150.19,6.6581]
[1727797482588,6.082,150.32,150.21,6.6571]
[1727797482995,6.082,150.32,150.22,7.98799325]
[1727797483169,6.082,150.32,150.22,6.6567]
[1727797483380,50.0,150.3,150.21,1.33115592]
[1727797483680,50.0,150.26,150.06,6.053]
[1727797483881,50.0,150.26,150.11,6.6613]
[1727797483882,6.6596,150.16,150.11,6.6613]
[1727797484077,6.6591,150.17,150.12,6.6612]
[1727797484271,6.6591,150.17,150.13,6.6608]
[1727797484675,33.2813,150.24,150.08,33.3147]
[1727797484888,33.2813,150.24,150.13,16.652]
[1727797484889,16.6403,150.24,150.13,16.652]
[1727797485107,50.0,150.28,150.17,6.6587]
[1727797485108,6.657,150.22,150.17,6.6587]
[1727797485388,20.0,150.27,150.09,20.0]
[1727797485590,6.6578,150.2,150.15,6.6599]
[1727797485995,70.0,150.27,150.08,16.6573]
[1727797486190,6.6583,150.19,150.14,6.6603]
[1727797486979,16.6429,150.22,150.12,16.6523]
[1727797487178,6.6587,150.18,150.13,6.6608]
[1727797488091,16.6429,150.22,150.11,16.6536]
[1727797488295,6.6586,150.19,150.11,16.6536]
[1727797488503,6.6586,150.19,150.14,6.6603]
[1727797488875,6.659,150.18,150.13,6.6606]
[1727797489202,1.52419057,150.29,150.13,41.9179]
[1727797489493,6.6555,150.26,150.19,16.6448]
[1727797489693,6.6555,150.26,150.22,6.6568]
[1727797490193,6.6541,150.29,150.24,6.6559]
[1727797490402,22.7134,150.32,150.17,20.0]
[1727797490604,6.6556,150.25,150.2,23.3018]
[1727797490976,29.62642334,150.34,150.23,16.6406]
[1727797491297,22.6972,150.34,150.23,16.6406]
[1727797491800,6.6528,150.32,150.27,6.6545]
[1727797492502,21.15731771,150.37,150.26,1.33066043]
[1727797492683,6.6532,150.31,150.27,6.6546]
[1727797492993,6.6525,150.32,150.27,6.6546]
[1727797493493,6.92881301,150.38,150.24,48.9747]
[1727797493698,6.6507,150.36,150.3,6.653]
[1727797493874,16.6225,150.4,150.3,16.6323]
[1727797494093,6.6502,150.38,150.32,6.6524]
[1727797494278,6.6502,150.38,150.3,16.6323]
[1727797494279,16.619,150.43,150.33,6.6518]
[1727797494585,6.6489,150.4,150.33,23.2815]
[1727797494778,6.6495,150.39,150.33,23.2815]
[1727797494978,6.6495,150.39,150.34,6.6514]
[1727797495174,6.6503,150.37,150.33,16.63]
[1727797495580,6.6507,150.36,150.31,6.6528]
[1727797495789,6.6494,150.39,150.34,6.6515]
[1727797495975,16.619,150.43,150.28,33.2699]
[1727797496308,16.619,150.43,150.3,20.0]
[1727797497198,6.6502,150.37,150.32,6.6524]
[1727797498397,57.80678616,150.44,150.31,16.6313]
[1727797498693,6.6507,150.36,150.32,1.33024022]
[1727797499512,16.6182,150.44,150.33,17.95953955]
[1727797500070,49.8435,150.48,150.33,21.33023955]
[1727797500275,49.8435,150.48,150.35,6.651]
[1727797500276,6.6492,150.4,150.35,6.651]
[1727797500492,33.2364,150.44,150.32,13.1916]
[1727797500804,33.2364,150.44,150.34,6.6511]
[1727797500990,6.92135092,150.47,150.27,6.4315]
[1727797500991,6.649,150.4,150.35,6.651]
[1727797501377,19.99,150.45,150.27,6.4315]
[1727797501598,6.6505,150.37,150.32,6.6523]
[1727797501799,6.6505,150.37,150.27,6.4315]
[1727797501800,11.63960968,150.47,150.33,1.33014845]
[1727797502107,11.63960968,150.47,150.27,6.4315]
[1727797502108,11.63960968,150.47,150.34,1.32997753]
[1727797502406,54.7817,150.48,150.39,6.6491]
[1727797502407,6.6472,150.44,150.39,6.6491]
[1727797502705,41.5427,150.48,150.32,53.2612]
[1727797502915,11.58398321,150.48,150.38,20.0]
[1727797503098,0.8388606,150.51,150.38,20.0]
[1727797503287,16.6148,150.47,150.37,20.0]
[1727797503487,6.6476,150.43,150.38,6.6497]
[1727797503803,6.6485,150.41,150.36,29.4806]
[1727797503975,6.6476,150.43,150.37,7.97958449]
[1727797504176,27.74714906,150.51,150.32,33.2612]
[1727797504177,16.6176,150.45,150.34,20.0]
[1727797504407,16.6176,150.45,150.3,60.32627594]
[1727797504408,26.4044,150.44,150.26,6.2041]
[1727797504612,16.6265,150.37,150.27,6.6546]
[1727797504899,6.4144,150.44,150.28,16.6347]
[1727797505102,6.4144,150.44,150.26,6.2041]
[1727797505476,16.6201,150.42,150.32,6.652]
[1727797505678,6.6512,150.35,150.31,16.6314]
[1727797505979,6.6516,150.34,150.29,6.6534]
[1727797506178,6.6511,150.35,150.3,6.6533]
[1727797506392,6.6507,150.36,150.31,6.6527]
[1727797506700,6.6493,150.39,150.34,6.6513]
[1727797506897,6.6489,150.4,150.33,16.6292]
[1727797507083,6.4144,150.44,150.33,16.6292]
[1727797507398,6.6495,150.39,150.34,6.6514]
[1727797507781,6.6495,150.39,150.33,16.6292]
[1727797507782,6.6495,150.39,150.33,23.2811]
[1727797508298,6.6511,150.35,150.3,20.0]
[1727797508604,16.6255,150.38,150.29,6.6537]
[1727797508900,39.652,150.44,150.21,23.2997]
[1727797508901,6.6552,150.26,150.21,23.2997]
[1727797509121,6.1073,150.34,150.16,6.0362]
[1727797509277,6.1073,150.34,150.19,6.658]
[1727797509278,16.6345,150.29,150.19,6.658]
[1727797509477,6.6573,150.21,150.16,12.6957]
[1727797509682,16.6377,150.27,150.17,6.659]
[1727797509683,6.6569,150.22,150.17,6.659]
[1727797509885,6.6577,150.21,150.16,6.0362]
[1727797510103,6.6588,150.18,150.14,16.6501]
[1727797510285,16.6399,150.25,150.14,16.6501]
[1727797510784,16.6358,150.28,150.17,16.6474]
[1727797510984,33.2642,150.32,150.21,6.6569]
[1727797511186,6.6557,150.25,150.2,23.302]
[1727797511398,16.632,150.32,150.2,16.6443]
[1727797511598,16.632,150.32,150.22,16.6413]
[1727797511798,16.632,150.32,150.23,6.6563]
[1727797512004,6.6547,150.27,150.22,16.6413]
[1727797512206,6.6541,150.29,150.23,1.33092888]
[1727797512409,6.6545,150.28,150.23,6.656]
[1727797512612,6.6545,150.28,150.24,1.33088982]
[1727797513313,6.6534,150.3,150.25,7.98638666]
[1727797513482,6.6534,150.3,150.25,6.6555]
[1727797513683,6.6523,150.33,150.21,21.3998]
[1727797513901,6.2393,150.4,150.32,6.6524]
[1727797514214,4.63613034,150.45,150.32,6.6524]
[1727797514215,6.6502,150.37,150.32,6.6524]
[1727797514508,6.6493,150.39,150.34,6.6515]
[1727797515004,6.6498,150.38,150.35,1.33000768]
[1727797516110,16.6203,150.42,150.32,16.6301]
[1727797516111,6.6504,150.37,150.32,16.6301]
[1727797516409,6.6518,150.34,150.29,23.2881]
[1727797516584,16.6233,150.4,150.31,6.6528]
[1727797516585,6.6507,150.36,150.31,6.6528]
[1727797517213,16.6233,150.4,150.29,16.6344]
[1727797517395,16.6233,150.4,150.3,1.33029385]
[1727797517994,16.6233,150.4,150.32,6.6524]
[1727797518198,6.6502,150.38,150.33,7.98183008]
[1727797518812,6.6502,150.38,150.33,14.16083008]
[1727797519003,6.6502,150.38,150.33,7.50903008]
[1727797519314,6.6485,150.41,150.36,6.6506]
[1727797519509,6.6472,150.44,150.39,6.6493]
[1727797519691,6.648,150.42,150.38,6.6497]
[1727797519887,6.648,150.42,150.39,1.32953535]
[1727797520206,6.6485,150.41,150.39,1.32953535]
[1727797520515,6.6476,150.43,150.39,1.32953535]
[1727797520698,16.616,150.46,150.39,1.32953535]
[1727797520891,6.6475,150.44,150.39,7.97883535]
[1727797521207,6.6471,150.44,150.39,7.97873535]
[1727797521507,6.6454,150.48,150.43,6.6475]
[1727797521694,6.6454,150.48,150.44,1.32906606]
[1727797521890,0.8388606,150.51,150.44,21.32906606]
[1727797522313,0.8388606,150.51,150.5,6.6445]
[1727797522610,0.8388606,150.51,150.48,16.613]
[1727797522810,0.8388606,150.51,150.49,21.32852065]
[1727797523019,0.8388606,150.51,150.49,1.32852065]
[1727797523201,0.8388606,150.51,150.44,21.32862782]
[1727797523516,7.4829606,150.51,150.45,6.6466]
[1727797523689,7.4829606,150.51,150.44,36.6177]
[1727797523690,6.6445,150.5,150.44,36.6177]
[1727797523886,6.6454,150.48,150.44,16.6177]
[1727797524089,6.6462,150.47,150.43,6.5025]
[1727797524512,0.8388606,150.51,150.43,6.5025]
[1727797524513,6.6457,150.48,150.43,6.5025]
[1727797524911,0.8388606,150.51,150.43,6.5025]
[1727797525210,6.646,150.47,150.43,6.5025]
[1727797525713,6.6463,150.46,150.41,6.6484]
[1727797526094,0.8388606,150.51,150.41,20.0]
[1727797526405,6.6477,150.43,150.37,22.8986]
[1727797527116,6.6477,150.43,150.38,6.6494]
[1727797527414,6.6472,150.44,150.39,6.6493]
[1727797528010,16.6126,150.49,150.37,22.8986]
[1727797528011,6.6467,150.45,150.4,7.97833071]
[1727797528201,6.6467,150.45,150.4,6.6489]
[1727797528797,16.6126,150.49,150.39,16.6225]
[1727797529121,0.8388606,150.51,150.4,21.3293468]
[1727797529122,6.6462,150.47,150.4,21.3293468]
[1727797529310,6.6455,150.48,150.43,6.6474]
[1727797529622,0.8388606,150.51,150.44,1.32901023]
[1727797529819,0.8388606,150.51,150.33,6.0899]
[1727797530113,6.6484,150.42,150.36,6.6506]
[1727797530310,6.6485,150.41,150.36,6.6506]
[1727797530503,6.6481,150.42,150.37,6.6502]
[1727797530702,16.6154,150.47,150.33,6.0899]
[1727797531012,17.4500606,150.51,150.41,6.6484]
[1727797531207,6.645,150.49,150.41,1.3291898]
[1727797531413,6.6445,150.5,150.45,6.6467]
[1727797531712,0.8388606,150.51,150.43,16.6181]
[1727797531713,0.8388606,150.51,150.43,23.2653]
[1727797532017,6.6458,150.47,150.43,16.6181]
[1727797532795,6.6458,150.47,150.44,1.32907724]
[1727797533294,6.6458,150.47,150.43,23.2656]
[1727797535501,0.8388606,150.51,150.4,16.622]
[1727797535703,6.6472,150.44,150.4,16.622]
[1727797535926,0.8388606,150.51,150.38,6.6497]
[1727797536218,0.8388606,150.51,150.36,6.6506]
[1727797536397,16.6185,150.44,150.34,16.6287]
[1727797536921,6.6507,150.36,150.33,6.0899]
[1727797537112,6.6507,150.36,150.32,6.6523]
[1727797537113,6.6503,150.37,150.32,6.6523]
[1727797538919,16.6229,150.4,150.31,16.6318]
[1727797539137,6.6522,150.33,150.29,6.0465]
[1727797539306,6.6522,150.33,150.29,12.7002]
[1727797539623,6.6522,150.33,150.29,6.0465]
[1727797539831,6.6522,150.33,150.29,14.03037395]
[1727797540133,6.6525,150.32,150.28,23.2897]
[1727797540307,16.6255,150.38,150.18,6.9272655]
[1727797540308,39.4485,150.37,150.18,6.9272655]
[1727797540621,39.4485,150.37,150.25,6.6555]
[1727797540622,6.6533,150.3,150.25,6.6555]
[1727797541038,22.8221,150.37,150.26,1.33067987]
[1727797541203,6.6519,150.34,150.29,6.6537]
[1727797541404,6.6519,150.34,150.3,1.33032426]
[1727797541734,6.6515,150.34,150.29,6.6537]
[1727797542020,39.5065,150.41,150.29,20.0]